[Event "FIDE Women World Blitz 2021"]
[Site "Warsaw"]
[Date "2021.12.30"]
[Round "15.6"]
[White "Buksa, Nataliya"]
[Black "Dzagnidze, Nana"]
[Result "0-1"]
[ECO "D00"]
[WhiteElo "2199"]
[BlackElo "2524"]
[Annotator "ChessBase"]
[PlyCount "76"]
[EventDate "2021.12.29"]
[EventType "swiss"]
[EventCountry "POL"]
[Tiebreak "Cut1 Buchholz"]
[SourceTitle "playchess.com"]
[Source "ChessBase"]
[SourceQuality "1"]
[TimeControl "180+2"]

1. d4 {[%emt 0:00:01]} Nf6 {[%emt 0:00:03]} 2. Nc3 {[%emt 0:00:01]} d5 {
[%emt 0:00:02]} 3. Bf4 {[%emt 0:00:00]} a6 {[%emt 0:00:01]} 4. e3 {[%emt 0:00:
01]} Bf5 {[%emt 0:00:06]} 5. Nf3 {[%emt 0:00:01]} h6 {[%emt 0:00:07]} 6. Ne5 {
[%emt 0:00:02]} e6 {[%emt 0:00:04]} 7. Bd3 {[%emt 0:00:29]} Bxd3 {[%emt 0:00:
08]} 8. cxd3 {[%emt 0:00:16]} Be7 {[%emt 0:00:24]} 9. O-O {[%emt 0:00:02]} O-O
{[%emt 0:00:15]} 10. Rc1 {[%emt 0:00:01]} Nbd7 {[%emt 0:00:06]} 11. e4 {
[%emt 0:00:09]} c5 {[%emt 0:00:59]} 12. Nxd7 {[%emt 0:00:42]} Qxd7 {[%emt 0:00:
08]} 13. e5 {[%emt 0:00:02]} Nh7 {[%emt 0:00:06]} 14. Ne2 {[%emt 0:00:02]} Rfc8
{[%emt 0:00:03]} 15. Be3 {[%emt 0:00:10]} cxd4 {[%emt 0:00:07]} 16. Nxd4 {
[%emt 0:00:02]} Nf8 {[%emt 0:00:08]} 17. Nb3 {[%emt 0:00:21]} Rxc1 {[%emt 0:00:
15]} 18. Qxc1 {[%emt 0:00:01]} Rc8 {[%emt 0:00:00]} 19. Qd2 {[%emt 0:00:01]}
Ng6 {[%emt 0:00:04]} 20. f4 {[%emt 0:00:14]} h5 {[%emt 0:00:05]} 21. Rc1 {
[%emt 0:00:02]} Nh4 {[%emt 0:00:06]} 22. Rxc8+ {[%emt 0:00:37]} Qxc8 {[%emt 0:
00:01]} 23. Qc3 {[%emt 0:00:01]} Qd7 {[%emt 0:00:12]} 24. Bc5 {[%emt 0:00:12]}
Nf5 {[%emt 0:00:06]} 25. Qb4 {[%emt 0:00:03]} Bxc5+ {[%emt 0:00:05]} 26. Qxc5 {
[%emt 0:00:05]} Qa4 {[%emt 0:00:03]} 27. Qc8+ {[%emt 0:00:11]} Kh7 {[%emt 0:00:
01]} 28. g3 {[%emt 0:00:04]} Qxa2 {[%emt 0:00:03]} 29. Qxb7 {[%emt 0:00:01]}
Qxb2 {[%emt 0:00:02]} 30. Qxf7 {[%emt 0:00:04]} Qxb3 {[%emt 0:00:02]} 31. Qxe6
{[%emt 0:00:03]} Qxd3 {[%emt 0:00:03]} 32. Qf7 {[%emt 0:00:02]} Qd1+ {[%emt 0:
00:03]} 33. Kf2 {[%emt 0:00:01]} Qc2+ {[%emt 0:00:03]} 34. Kg1 {[%emt 0:00:02]}
Qd1+ {[%emt 0:00:02]} 35. Kf2 {[%emt 0:00:01]} Nh6 {[%emt 0:00:00]} 36. e6 {
[%emt 0:00:02]} Nxf7 {[%emt 0:00:02]} 37. exf7 {[%emt 0:00:01]} Qc2+ {[%emt 0:
00:01]} 38. Kf1 {[%emt 0:00:01]} Qf5 {[%emt 0:00:01]} 0-1

[Event "FIDE Women World Blitz 2021"]
[Site "Warsaw"]
[Date "2021.12.30"]
[Round "15.6"]
[White "Jakubowska, Anna"]
[Black "Zabrzanska, Weronika"]
[Result "1-0"]
[ECO "C26"]
[WhiteElo "2106"]
[BlackElo "1596"]
[Annotator "NA"]
[PlyCount "91"]
[EventDate "2021.12.29"]
[EventType "swiss"]
[EventCountry "POL"]
[Tiebreak "Cut1 Buchholz"]
[SourceTitle "playchess.com"]
[Source "ChessBase"]
[SourceQuality "1"]
[TimeControl "180+2"]

1. e4 {[%emt 0:00:01]} e5 {[%emt 0:00:02]} 2. Nc3 {[%emt 0:00:01]} Nf6 {
[%emt 0:00:03]} 3. g3 {[%emt 0:00:01]} d5 {[%emt 0:00:06]} 4. exd5 {[%emt 0:00:
02]} Nxd5 {[%emt 0:00:01]} 5. Bg2 {[%emt 0:00:01]} c6 {[%emt 0:00:10]} 6. Nge2
{[%emt 0:00:02]} Bc5 {[%emt 0:00:05]} 7. O-O {[%emt 0:00:04]} O-O {[%emt 0:00:
03]} 8. Nxd5 {[%emt 0:00:02]} cxd5 {[%emt 0:00:03]} 9. d4 {[%emt 0:00:01]} exd4
{[%emt 0:00:09]} 10. Nxd4 {[%emt 0:00:02]} Qf6 {[%emt 0:00:18]} 11. Nb3 {
[%emt 0:00:04]} Na6 {[%emt 0:00:20]} 12. Nxc5 {[%emt 0:00:14]} Nxc5 {[%emt 0:
00:02]} 13. Qxd5 {[%emt 0:00:02]} Ne6 {[%emt 0:00:08]} 14. c3 {[%emt 0:00:11]}
Rd8 {[%emt 0:00:04]} 15. Qf3 {[%emt 0:00:25]} Qe7 {[%emt 0:00:13]} 16. Be3 {
[%emt 0:00:03]} Bd7 {[%emt 0:00:11]} 17. Qxb7 {[%emt 0:00:08]} Rdb8 {[%emt 0:
00:13]} 18. Qxa8 {[%emt 0:00:24]} Rxa8 {[%emt 0:00:01]} 19. Bxa8 {[%emt 0:00:
01]} h6 {[%emt 0:00:12]} 20. Rad1 {[%emt 0:00:09]} f5 {[%emt 0:00:12]} 21. Bd5
{[%emt 0:00:04]} Kh7 {[%emt 0:00:08]} 22. Rfe1 {[%emt 0:00:01]} Qf6 {[%emt 0:
00:07]} 23. Bg2 {[%emt 0:00:06]} Bc8 {[%emt 0:00:14]} 24. f4 {[%emt 0:00:06]}
Qf7 {[%emt 0:00:09]} 25. Bd5 {[%emt 0:00:02]} Qc7 {[%emt 0:00:14]} 26. Bf2 {
[%emt 0:00:12]} Nc5 {[%emt 0:00:06]} 27. Bxc5 {[%emt 0:00:23]} Qxc5+ {[%emt 0:
00:01]} 28. Rd4 {[%emt 0:00:01]} Qb6 {[%emt 0:00:07]} 29. b4 {[%emt 0:00:07]}
Qc7 {[%emt 0:00:07]} 30. c4 {[%emt 0:00:06]} a5 {[%emt 0:00:05]} 31. a3 {
[%emt 0:00:05]} Qa7 {[%emt 0:00:04]} 32. c5 {[%emt 0:00:05]} Ba6 {[%emt 0:00:
03]} 33. Be6 {[%emt 0:00:11]} Kg6 {[%emt 0:00:02]} 34. Rd5 {[%emt 0:00:08]}
axb4 {[%emt 0:00:03]} 35. Bxf5+ {[%emt 0:00:01]} Kf6 {[%emt 0:00:03]} 36. Re6+
{[%emt 0:00:06]} Kf7 {[%emt 0:00:00]} 37. Red6 {[%emt 0:00:07]} Kf8 {[%emt 0:
00:03]} 38. Rd8+ {[%emt 0:00:02]} Ke7 {[%emt 0:00:01]} 39. R8d7+ {[%emt 0:00:
01]} Qxd7 {[%emt 0:00:01]} 40. Rxd7+ {[%emt 0:00:01]} Ke8 {[%emt 0:00:02]} 41.
axb4 {[%emt 0:00:03]} Bc8 {[%emt 0:00:02]} 42. Rd5 {[%emt 0:00:02]} Bb7 {
[%emt 0:00:00]} 43. Bd7+ {[%emt 0:00:04]} Ke7 {[%emt 0:00:03]} 44. c6 {[%emt 0:
00:01]} Ba8 {[%emt 0:00:04]} 45. c7 {[%emt 0:00:05]} Bxd5 {[%emt 0:00:04]} 46.
c8=Q {[%emt 0:00:01]} 1-0

[Event "FIDE Women World Blitz 2021"]
[Site "Warsaw"]
[Date "2021.12.30"]
[Round "15.7"]
[White "Stefanova, Antoaneta"]
[Black "Babiy, Olga"]
[Result "1-0"]
[ECO "D02"]
[WhiteElo "2475"]
[BlackElo "2179"]
[Annotator "ChessBase"]
[PlyCount "118"]
[EventDate "2021.12.29"]
[EventType "swiss"]
[EventCountry "POL"]
[Tiebreak "Cut1 Buchholz"]
[SourceTitle "playchess.com"]
[Source "ChessBase"]
[SourceQuality "1"]
[TimeControl "180+2"]

1. Nf3 {[%emt 0:00:01]} d5 {[%emt 0:00:00]} 2. g3 {[%emt 0:00:01]} Nd7 {
[%emt 0:00:02]} 3. d4 {[%emt 0:00:02]} Nb6 {[%emt 0:00:01]} 4. Bg2 {[%emt 0:00:
01]} Bf5 {[%emt 0:00:01]} 5. O-O {[%emt 0:00:02]} e6 {[%emt 0:00:00]} 6. a4 {
[%emt 0:00:05]} a5 {[%emt 0:00:02]} 7. c3 {[%emt 0:00:12]} h6 {[%emt 0:00:02]}
8. Nbd2 {[%emt 0:00:03]} Nf6 {[%emt 0:00:02]} 9. Re1 {[%emt 0:00:02]} c5 {
[%emt 0:00:28]} 10. Qb3 {[%emt 0:00:05]} c4 {[%emt 0:00:40]} 11. Qb5+ {[%emt 0:
00:14]} Nbd7 {[%emt 0:00:01]} 12. b3 {[%emt 0:00:06]} cxb3 {[%emt 0:00:08]} 13.
Qxb3 {[%emt 0:00:14]} Qb6 {[%emt 0:00:08]} 14. Ba3 {[%emt 0:00:20]} Qxb3 15.
Nxb3 {[%emt 0:00:01]} Bxa3 16. Rxa3 {[%emt 0:00:01]} Ke7 {[%emt 0:00:25]} 17.
Nfd2 {[%emt 0:00:11]} Rhc8 {[%emt 0:00:06]} 18. Rc1 {[%emt 0:00:01]} Rc7 {
[%emt 0:00:10]} 19. c4 {[%emt 0:00:05]} Rac8 {[%emt 0:00:24]} 20. c5 {[%emt 0:
00:01]} b6 {[%emt 0:00:03]} 21. Bf1 {[%emt 0:00:14]} bxc5 22. dxc5 {[%emt 0:00:
01]} Nxc5 {[%emt 0:00:04]} 23. Nxa5 {[%emt 0:00:02]} Nce4 {[%emt 0:00:16]} 24.
Rxc7+ {[%emt 0:00:07]} Rxc7 {[%emt 0:00:01]} 25. Nxe4 {[%emt 0:00:05]} Nxe4 {
[%emt 0:00:01]} 26. f3 {[%emt 0:00:03]} Nd2 {[%emt 0:00:08]} 27. Ra1 {[%emt 0:
00:05]} Nc4 {[%emt 0:00:26]} 28. Nb3 {[%emt 0:00:05]} Ra7 {[%emt 0:00:04]} 29.
Nd4 {[%emt 0:00:01]} Ra8 {[%emt 0:00:07]} 30. e4 {[%emt 0:00:06]} Bg6 {[%emt 0:
00:01]} 31. exd5 {[%emt 0:00:11]} exd5 {[%emt 0:00:02]} 32. Nb5 {[%emt 0:00:07]
} Kd7 {[%emt 0:00:05]} 33. Rd1 {[%emt 0:00:05]} Kc6 {[%emt 0:00:02]} 34. Nc3 {
[%emt 0:00:06]} Kc7 {[%emt 0:00:02]} 35. Nxd5+ {[%emt 0:00:00]} Kc6 {[%emt 0:
00:04]} 36. Bxc4 {[%emt 0:00:02]} Rxa4 {[%emt 0:00:01]} 37. Ne7+ {[%emt 0:00:
13]} Kc5 {[%emt 0:00:01]} 38. Nxg6 {[%emt 0:00:01]} Rxc4 {[%emt 0:00:06]} 39.
Ne5 {[%emt 0:00:01]} Rc3 {[%emt 0:00:01]} 40. f4 {[%emt 0:00:19]} f6 {[%emt 0:
00:00]} 41. Ng6 {[%emt 0:00:02]} Rc2 {[%emt 0:00:03]} 42. h4 {[%emt 0:00:02]}
Kc6 {[%emt 0:00:02]} 43. Ne7+ {[%emt 0:00:01]} Kc7 {[%emt 0:00:02]} 44. Nf5 {
[%emt 0:00:02]} g5 {[%emt 0:00:02]} 45. Nxh6 {[%emt 0:00:05]} gxh4 {[%emt 0:00:
03]} 46. gxh4 {[%emt 0:00:01]} Rc4 {[%emt 0:00:01]} 47. Rf1 {[%emt 0:00:02]}
Kd6 {[%emt 0:00:01]} 48. Kg2 {[%emt 0:00:01]} Ke6 {[%emt 0:00:02]} 49. Ng4 {
[%emt 0:00:01]} Rc3 {[%emt 0:00:04]} 50. Rf3 {[%emt 0:00:02]} Rc2+ {[%emt 0:00:
01]} 51. Kg3 {[%emt 0:00:02]} Rc1 {[%emt 0:00:02]} 52. f5+ {[%emt 0:00:03]} Kf7
{[%emt 0:00:01]} 53. Rb3 {[%emt 0:00:03]} Rc5 {[%emt 0:00:02]} 54. Rb7+ {
[%emt 0:00:01]} Kf8 {[%emt 0:00:01]} 55. Nh6 {[%emt 0:00:03]} Rc6 {[%emt 0:00:
05]} 56. Kg4 {[%emt 0:00:02]} Ke8 {[%emt 0:00:04]} 57. Kh5 {[%emt 0:00:01]} Rc4
{[%emt 0:00:02]} 58. Rf7 {[%emt 0:00:05]} Re4 {[%emt 0:00:02]} 59. Rxf6 {
[%emt 0:00:02]} Rf4 {[%emt 0:00:03]} 1-0

[Event "FIDE Women World Blitz 2021"]
[Site "Warsaw"]
[Date "2021.12.30"]
[Round "15.7"]
[White "Gil Quilez, Sonia"]
[Black "Rudzinska, Michalina"]
[Result "0-1"]
[ECO "A61"]
[WhiteElo "2122"]
[BlackElo "1832"]
[Annotator "NA"]
[PlyCount "100"]
[EventDate "2021.12.29"]
[EventType "swiss"]
[EventCountry "POL"]
[Tiebreak "Cut1 Buchholz"]
[SourceTitle "playchess.com"]
[Source "ChessBase"]
[SourceQuality "1"]
[TimeControl "180+2"]

1. d4 {[%emt 0:00:00]} Nf6 {[%emt 0:00:01]} 2. c4 {[%emt 0:00:01]} e6 {[%emt 0:
00:01]} 3. Nc3 {[%emt 0:00:01]} c5 {[%emt 0:00:02]} 4. d5 {[%emt 0:00:01]} exd5
{[%emt 0:00:01]} 5. cxd5 {[%emt 0:00:01]} d6 {[%emt 0:00:01]} 6. Nf3 {[%emt 0:
00:03]} g6 {[%emt 0:00:01]} 7. Bf4 {[%emt 0:00:04]} a6 {[%emt 0:00:03]} 8. a4 {
[%emt 0:00:01]} Bg7 {[%emt 0:00:01]} 9. e3 {[%emt 0:00:02]} O-O {[%emt 0:00:02]
} 10. Be2 {[%emt 0:00:03]} Ne8 {[%emt 0:00:03]} 11. O-O {[%emt 0:00:09]} Nd7 {
[%emt 0:00:05]} 12. Nd2 {[%emt 0:00:15]} Ne5 {[%emt 0:00:06]} 13. Nc4 {[%emt 0:
00:06]} Nxc4 {[%emt 0:00:02]} 14. Bxc4 {[%emt 0:00:01]} Qe7 {[%emt 0:00:06]}
15. a5 {[%emt 0:00:08]} f5 {[%emt 0:00:07]} 16. Na4 {[%emt 0:00:05]} g5 {
[%emt 0:00:05]} 17. Nb6 {[%emt 0:00:24]} Rb8 {[%emt 0:00:01]} 18. Bg3 {[%emt 0:
00:18]} f4 {[%emt 0:00:02]} 19. exf4 {[%emt 0:00:01]} gxf4 {[%emt 0:00:01]} 20.
Nxc8 {[%emt 0:00:07]} Rxc8 {[%emt 0:00:02]} 21. Qg4 {[%emt 0:00:03]} fxg3 {
[%emt 0:00:13]} 22. Qxc8 {[%emt 0:00:05]} Qh4 {[%emt 0:00:04]} 23. fxg3 {
[%emt 0:00:14]} Qd4+ {[%emt 0:00:08]} 24. Kh1 {[%emt 0:00:02]} Qxc4 {[%emt 0:
00:06]} 25. Rxf8+ {[%emt 0:00:03]} Kxf8 {[%emt 0:00:02]} 26. Qf5+ {[%emt 0:00:
07]} Nf6 {[%emt 0:00:01]} 27. Rf1 {[%emt 0:00:05]} Kg8 {[%emt 0:00:35]} 28.
Qe6+ {[%emt 0:00:04]} Kh8 {[%emt 0:00:02]} 29. Qc8+ {[%emt 0:00:08]} Ng8 {
[%emt 0:00:01]} 30. Rd1 {[%emt 0:00:05]} Qe2 {[%emt 0:00:13]} 31. Rb1 {[%emt 0:
00:19]} Qe4 {[%emt 0:00:12]} 32. Rd1 {[%emt 0:00:07]} Qe2 {[%emt 0:00:35]} 33.
Rb1 {[%emt 0:00:01]} Qc2 {[%emt 0:00:10]} 34. Re1 {[%emt 0:00:02]} Qxb2 {
[%emt 0:00:03]} 35. Qe6 {[%emt 0:00:07]} c4 {[%emt 0:00:06]} 36. h3 {[%emt 0:
00:08]} c3 {[%emt 0:00:08]} 37. Qf7 {[%emt 0:00:02]} c2 {[%emt 0:00:18]} 38.
Re8 {[%emt 0:00:01]} c1=Q+ {[%emt 0:00:25]} 39. Kh2 {[%emt 0:00:01]} Bf8 {
[%emt 0:00:02]} 40. Rxf8 {[%emt 0:00:02]} Qg7 {[%emt 0:00:01]} 41. Qf2 {
[%emt 0:00:03]} Qcc3 {[%emt 0:00:01]} 42. Rf3 {[%emt 0:00:02]} Qce5 {[%emt 0:
00:01]} 43. Re3 {[%emt 0:00:02]} Qxd5 {[%emt 0:00:02]} 44. Qe2 {[%emt 0:00:03]}
Qdd4 {[%emt 0:00:00]} 45. Rf3 {[%emt 0:00:01]} Qde5 {[%emt 0:00:01]} 46. Qc2 {
[%emt 0:00:03]} d5 {[%emt 0:00:01]} 47. Rf4 {[%emt 0:00:03]} d4 {[%emt 0:00:02]
} 48. Qd3 {[%emt 0:00:01]} Qc5 {[%emt 0:00:02]} 49. Rxd4 {[%emt 0:00:02]} Qcxd4
{[%emt 0:00:01]} 50. Qxd4 {[%emt 0:00:02]} Qxd4 {[%emt 0:00:01]} 0-1

[Event "FIDE Women World Blitz 2021"]
[Site "Warsaw"]
[Date "2021.12.30"]
[Round "15.8"]
[White "Bivol, Alina"]
[Black "Socko, Monika"]
[Result "0-1"]
[ECO "C12"]
[WhiteElo "2377"]
[BlackElo "2393"]
[Annotator "NA"]
[PlyCount "74"]
[EventDate "2021.12.29"]
[EventType "swiss"]
[EventCountry "POL"]
[Tiebreak "Cut1 Buchholz"]
[SourceTitle "playchess.com"]
[Source "ChessBase"]
[SourceQuality "1"]
[TimeControl "180+2"]

1. e4 {[%emt 0:00:01]} e6 {[%emt 0:00:01]} 2. d4 {[%emt 0:00:01]} d5 {[%emt 0:
00:01]} 3. Nc3 {[%emt 0:00:03]} Nf6 {[%emt 0:00:01]} 4. Bg5 {[%emt 0:00:03]}
Bb4 {[%emt 0:00:02]} 5. e5 {[%emt 0:00:11]} h6 {[%emt 0:00:01]} 6. Bc1 {
[%emt 0:00:25]} Ne4 {[%emt 0:00:04]} 7. Qd3 {[%emt 0:00:34]} c5 {[%emt 0:00:18]
} 8. a3 {[%emt 0:00:06]} c4 {[%emt 0:00:29]} 9. Qe3 {[%emt 0:00:08]} Qa5 {
[%emt 0:00:17]} 10. Nge2 {[%emt 0:00:06]} Nc6 {[%emt 0:00:16]} 11. f3 {[%emt 0:
00:02]} Nxc3 {[%emt 0:00:03]} 12. bxc3 {[%emt 0:00:04]} Be7 {[%emt 0:00:02]}
13. f4 {[%emt 0:00:05]} Qa4 {[%emt 0:00:05]} 14. Ra2 {[%emt 0:00:04]} Bd7 {
[%emt 0:00:04]} 15. g3 {[%emt 0:00:06]} O-O-O {[%emt 0:00:16]} 16. Bg2 {
[%emt 0:00:06]} Kb8 {[%emt 0:00:09]} 17. O-O {[%emt 0:00:11]} f5 {[%emt 0:00:
02]} 18. exf6 {[%emt 0:00:04]} Bxf6 {[%emt 0:00:01]} 19. g4 {[%emt 0:00:05]}
Ne7 {[%emt 0:00:16]} 20. Ng3 {[%emt 0:00:07]} g6 {[%emt 0:00:13]} 21. g5 {
[%emt 0:00:01]} Bg7 {[%emt 0:00:00]} 22. Re1 {[%emt 0:00:23]} Rde8 {[%emt 0:00:
05]} 23. gxh6 {[%emt 0:00:13]} Rxh6 {[%emt 0:00:03]} 24. Qf3 {[%emt 0:00:01]}
Rhh8 {[%emt 0:00:11]} 25. Qg4 {[%emt 0:00:01]} Qc6 {[%emt 0:00:02]} 26. Rb2 {
[%emt 0:00:02]} Ka8 {[%emt 0:00:05]} 27. Bd2 {[%emt 0:00:02]} e5 {[%emt 0:00:
09]} 28. Qd1 {[%emt 0:00:10]} exd4 {[%emt 0:00:07]} 29. Ne2 {[%emt 0:00:09]}
Nf5 {[%emt 0:00:04]} 30. Rb1 {[%emt 0:00:10]} Qc5 {[%emt 0:00:11]} 31. cxd4 {
[%emt 0:00:04]} Bxd4+ {[%emt 0:00:05]} 32. Nxd4 {[%emt 0:00:02]} Qxd4+ {
[%emt 0:00:01]} 33. Kf1 {[%emt 0:00:00]} Rxh2 {[%emt 0:00:08]} 34. Rxe8+ {
[%emt 0:00:05]} Bxe8 {[%emt 0:00:02]} 35. Qe1 {[%emt 0:00:01]} Bc6 {[%emt 0:00:
04]} 36. Qe5 {[%emt 0:00:05]} Ng3+ {[%emt 0:00:05]} 37. Ke1 {[%emt 0:00:01]}
Qg1+ {[%emt 0:00:02]} 0-1

[Event "FIDE Women World Blitz 2021"]
[Site "Warsaw"]
[Date "2021.12.30"]
[Round "15.8"]
[White "Jarocka, Liwia"]
[Black "Zairbek kyzy, Begimai"]
[Result "0-1"]
[ECO "A06"]
[WhiteElo "1851"]
[BlackElo "1701"]
[Annotator "NA"]
[PlyCount "62"]
[EventDate "2021.12.29"]
[EventType "swiss"]
[EventCountry "POL"]
[Tiebreak "Cut1 Buchholz"]
[SourceTitle "playchess.com"]
[Source "ChessBase"]
[SourceQuality "1"]
[TimeControl "180+2"]

1. Nf3 {[%emt 0:00:01]} c6 {[%emt 0:00:01]} 2. b3 {[%emt 0:00:02]} d5 {[%emt 0:
00:00]} 3. Bb2 {[%emt 0:00:00]} f6 {[%emt 0:00:01]} 4. d4 {[%emt 0:00:02]} e6 {
[%emt 0:00:01]} 5. e3 {[%emt 0:00:02]} Bd6 {[%emt 0:00:03]} 6. Bd3 {[%emt 0:00:
02]} Ne7 {[%emt 0:00:01]} 7. O-O {[%emt 0:00:02]} O-O {[%emt 0:00:05]} 8. c4 {
[%emt 0:00:01]} Nd7 {[%emt 0:00:06]} 9. e4 {[%emt 0:00:12]} dxe4 {[%emt 0:00:
13]} 10. Bxe4 {[%emt 0:00:01]} f5 {[%emt 0:00:09]} 11. Bc2 {[%emt 0:00:02]} Nf6
{[%emt 0:00:01]} 12. Re1 {[%emt 0:00:05]} h6 {[%emt 0:00:03]} 13. Nc3 {[%emt 0:
00:23]} Ng6 {[%emt 0:00:12]} 14. d5 {[%emt 0:00:17]} e5 {[%emt 0:00:15]} 15.
dxc6 {[%emt 0:00:05]} bxc6 {[%emt 0:00:01]} 16. Na4 {[%emt 0:00:15]} e4 {
[%emt 0:00:10]} 17. Nd4 {[%emt 0:00:01]} Qc7 {[%emt 0:00:01]} 18. h3 {[%emt 0:
00:09]} a6 {[%emt 0:00:08]} 19. c5 {[%emt 0:00:23]} Be5 {[%emt 0:00:02]} 20.
Qe2 {[%emt 0:00:01]} Nf4 {[%emt 0:00:06]} 21. Qc4+ {[%emt 0:00:00]} Kh8 {
[%emt 0:00:08]} 22. Nb6 {[%emt 0:00:02]} Rb8 {[%emt 0:00:05]} 23. Rab1 {
[%emt 0:00:11]} N6d5 {[%emt 0:00:12]} 24. Nxc8 {[%emt 0:00:06]} Qxc8 {[%emt 0:
00:00]} 25. Bc1 {[%emt 0:00:41]} Rb4 {[%emt 0:00:00]} 26. Bxf4 {[%emt 0:00:08]}
Bxf4 {[%emt 0:00:42]} 27. Ne2 {[%emt 0:00:16]} Rxc4 {[%emt 0:00:05]} 28. bxc4
Bd2 {[%emt 0:00:02]} 29. Rf1 {[%emt 0:00:07]} Nf4 {[%emt 0:00:09]} 30. Ng3 {
[%emt 0:00:04]} Qe6 {[%emt 0:00:05]} 31. Rfd1 {[%emt 0:00:01]} e3 {[%emt 0:00:
03]} 0-1

[Event "FIDE Women World Blitz 2021"]
[Site "Warsaw"]
[Date "2021.12.30"]
[Round "15.9"]
[White "Kamalidenova, Meruert"]
[Black "Muzychuk, Anna"]
[Result "0-1"]
[ECO "C83"]
[WhiteElo "2339"]
[BlackElo "2533"]
[Annotator "ChessBase"]
[PlyCount "112"]
[EventDate "2021.12.29"]
[EventType "swiss"]
[EventCountry "POL"]
[Tiebreak "Cut1 Buchholz"]
[SourceTitle "playchess.com"]
[Source "ChessBase"]
[SourceQuality "1"]
[TimeControl "180+2"]

1. e4 {[%emt 0:00:02]} e5 {[%emt 0:00:01]} 2. Nf3 {[%emt 0:00:01]} Nc6 3. Bb5 {
[%emt 0:00:02]} a6 {[%emt 0:00:00]} 4. Ba4 {[%emt 0:00:01]} Nf6 {[%emt 0:00:01]
} 5. O-O {[%emt 0:00:02]} Nxe4 {[%emt 0:00:02]} 6. d4 {[%emt 0:00:05]} b5 {
[%emt 0:00:00]} 7. Bb3 {[%emt 0:00:01]} d5 {[%emt 0:00:01]} 8. dxe5 {[%emt 0:
00:06]} Be6 9. Be3 {[%emt 0:00:16]} Be7 {[%emt 0:00:04]} 10. c3 {[%emt 0:00:05]
} Qd7 {[%emt 0:00:04]} 11. Nbd2 {[%emt 0:00:08]} Nxd2 {[%emt 0:00:07]} 12. Qxd2
{[%emt 0:00:04]} Na5 {[%emt 0:00:07]} 13. Rfd1 {[%emt 0:00:14]} Rd8 {[%emt 0:
00:13]} 14. Qe2 {[%emt 0:00:09]} O-O {[%emt 0:00:10]} 15. Bc2 {[%emt 0:00:02]}
Nc4 {[%emt 0:00:04]} 16. Bc1 {[%emt 0:00:03]} Bg4 {[%emt 0:00:16]} 17. b3 {
[%emt 0:00:07]} Bxf3 {[%emt 0:00:08]} 18. Qxf3 {[%emt 0:00:03]} Nxe5 {[%emt 0:
00:07]} 19. Bxh7+ {[%emt 0:00:04]} Kxh7 {[%emt 0:00:01]} 20. Qh5+ {[%emt 0:00:
02]} Kg8 {[%emt 0:00:00]} 21. Qxe5 {[%emt 0:00:01]} Bf6 {[%emt 0:00:06]} 22.
Qg3 {[%emt 0:00:02]} c5 {[%emt 0:00:30]} 23. h4 {[%emt 0:00:13]} Qf5 {[%emt 0:
00:17]} 24. Bf4 {[%emt 0:00:25]} Rfe8 {[%emt 0:00:18]} 25. Rac1 {[%emt 0:00:06]
} Re4 {[%emt 0:00:07]} 26. Be3 {[%emt 0:00:41]} Bxh4 {[%emt 0:00:24]} 27. Qc7 {
[%emt 0:00:03]} Rxe3 {[%emt 0:00:16]} 28. fxe3 {[%emt 0:00:03]} Bf2+ {[%emt 0:
00:06]} 29. Kh1 {[%emt 0:00:04]} Re8 {[%emt 0:00:02]} 30. Qf4 {[%emt 0:00:11]}
Qh5+ {[%emt 0:00:13]} 31. Qh2 {[%emt 0:00:03]} Re5 {[%emt 0:00:03]} 32. g4 {
[%emt 0:00:07]} Qxh2+ {[%emt 0:00:12]} 33. Kxh2 {[%emt 0:00:02]} Bxe3 {[%emt 0:
00:03]} 34. Rc2 {[%emt 0:00:01]} Bf4+ {[%emt 0:00:03]} 35. Kg2 {[%emt 0:00:01]}
g5 {[%emt 0:00:02]} 36. Kf2 {[%emt 0:00:03]} Kf8 {[%emt 0:00:01]} 37. Re2 {
[%emt 0:00:02]} Re6 {[%emt 0:00:04]} 38. Rxd5 {[%emt 0:00:02]} Rf6 {[%emt 0:00:
01]} 39. Kg2 {[%emt 0:00:03]} c4 {[%emt 0:00:01]} 40. bxc4 {[%emt 0:00:03]}
bxc4 {[%emt 0:00:01]} 41. Rc5 {[%emt 0:00:02]} Rd6 {[%emt 0:00:02]} 42. Rxc4 {
[%emt 0:00:03]} Rd3 {[%emt 0:00:01]} 43. Rc8+ {[%emt 0:00:09]} Kg7 {[%emt 0:00:
00]} 44. c4 {[%emt 0:00:02]} Rg3+ {[%emt 0:00:01]} 45. Kf2 {[%emt 0:00:02]}
Rxg4 {[%emt 0:00:01]} 46. c5 {[%emt 0:00:02]} Rg3 {[%emt 0:00:03]} 47. c6 {
[%emt 0:00:04]} Rc3 {[%emt 0:00:01]} 48. a4 {[%emt 0:00:03]} g4 {[%emt 0:00:02]
} 49. Kg2 {[%emt 0:00:02]} f5 {[%emt 0:00:03]} 50. c7 {[%emt 0:00:03]} Kf7 {
[%emt 0:00:03]} 51. Ra8 {[%emt 0:00:08]} Bxc7 {[%emt 0:00:03]} 52. Rxa6 {
[%emt 0:00:03]} f4 {[%emt 0:00:00]} 53. Rd2 {[%emt 0:00:05]} f3+ {[%emt 0:00:
02]} 54. Kf2 {[%emt 0:00:01]} g3+ {[%emt 0:00:00]} 55. Ke1 {[%emt 0:00:01]}
Rc1+ {[%emt 0:00:01]} 56. Rd1 {[%emt 0:00:01]} f2+ {[%emt 0:00:01]} 0-1